Cogmind - Beta 14 @@@ ROGUE MODE // 2024.08.18 @ 16:46:20 Player: TheProctologist Result: Self-destructed Performance ------------- Evolutions (2) 1000 Regions Visited (6) 1200 Robots Destroyed (84) 420 Value Destroyed (2764) 2764 Prototype IDs (2) 40 Alien Tech Used (0) 0 Bonus (725) 725 TOTAL SCORE: 6149 Bonus ------- High Alert Combat Kills 334 Follower Combat Kills 66 Entered Garrisons 200 Aligned with FarCom 300 Friendly Fire -175 Cogmind --------- Core Integrity 298/550 Matter 300/300 Energy 96/100 System Corruption 0% Temperature Cool (91) Movement Walking (190) Ox1 Location -8/Garrison Parts ------- > --- POWER (1) -------- (None) > --- PROPULSION (3) --- Aluminum Leg > --- UTILITY (4) ------ Large Storage Unit Hacking Suite > --- WEAPON (3) ------- (None) > --- INVENTORY (15) --- Light Nuclear Core Improved Heat Sink Advanced Heat Sink Energy Filter Transmission Jammer Improved Trap Extractor (0/6) Recalibrator Gatling Laser Gatling Laser AWS/Autocannon Mini Grenade Launcher Datajack Peak State ------------ > --- POWER ------------ Light Nuclear Core > --- PROPULSION ------- Aluminum Leg Improved Aluminum Leg Improved Carbon-fiber Leg > --- UTILITY ---------- Large Storage Unit Experimental Sensor Array Improved Signal Interpreter Hacking Suite > --- WEAPON ----------- AWS/Autocannon > --- INVENTORY -------- Light Nuclear Core Improved Heat Sink Advanced Heat Sink Energy Filter Transmission Jammer Improved Trap Extractor Recalibrator Gatling Laser Gatling Laser Gatling Laser Gatling Laser Mini Grenade Launcher Datajack Great Axe [Rating: 61] Favorites ----------- Power Light Ion Engine Engine Light Ion Engine Power Core Light Nuclear Core Propulsion Aluminum Leg Leg Aluminum Leg Utility Large Storage Unit Device Experimental Sensor Array Storage Large Storage Unit Processor Transport Network Coupler Hackware Hacking Suite Protection Hardened Light Armor Plating Weapon Assault Rifle Energy Gun Gatling Laser Ballistic Gun Assault Rifle Ballistic Cannon AWS/Autocannon Launcher Mini Grenade Launcher Special Weapon Mining Laser Slashing Weapon Great Axe Special Melee Weapon Datajack Build | -11 -10 -10 -10 -9 -8 -8 ------- Run | Yrd Mat Min Exi Min Mat Gar Slots Evolved 4 | . . . . . 4 . Power . | . . . . . . . Propulsion 1 | . . . . . 1 . Utility 2 | . . . . . 2 . Weapon 1 | . . . . . 1 . Parts Attached 49 | 8 8 7 . 5 12 9 Power 7 | 1 3 . . 1 2 . Engine 5 | 1 2 . . 1 1 . Core 2 | . 1 . . . 1 . Reactor . | . . . . . . . Propulsion 12 | 2 2 . . 1 5 2 Treads . | . . . . . . . Leg 12 | 2 2 . . 1 5 2 Wheel . | . . . . . . . Hover . | . . . . . . . Flight . | . . . . . . . Utility 9 | 2 2 . . . 4 1 Device 2 | 1 . . . . 1 . Storage 2 | 1 1 . . . . . Processor 2 | . 1 . . . 1 . Hackware 1 | . . . . . 1 . Protection 2 | . . . . . 1 1 Artifact . | . . . . . . . Weapon 21 | 3 1 7 . 3 1 6 Energy Gun 7 | 2 . . . 2 . 3 Energy Cannon . | . . . . . . . Ballistic Gun 4 | 1 1 1 . 1 . . Ballistic Cannon 2 | . . . . . 1 1 Launcher 4 | . . 4 . . . . Special Weapon 2 | . . 2 . . . . Impact Weapon . | . . . . . . . Slashing Weapon 1 | . . . . . . 1 Piercing Weapon . | . . . . . . . Special Melee Weapon 1 | . . . . . . 1 Unidentified Prototypes 1 | . . . . . 1 . Parts Lost 11 | . . . . . 6 5 Power 3 | . . . . . 2 1 Propulsion 4 | . . . . . 2 2 Utility 4 | . . . . . 2 2 Weapon . | . . . . . . . Highest Loss Streak 5 | . . . . . 5 5 To Critical Strikes . | . . . . . . . Average Slot Usage (%) 90 | . 98 100 100 99 70 81 Engine 11 | . 14 14 14 13 8 . Core 1 | . . . . . . 8 Leg 27 | . 26 28 28 28 26 26 Device 3 | . 10 . . . 2 9 Storage 12 | . 14 14 14 14 9 9 Processor 8 | . 3 14 14 14 3 6 Hackware 3 | . . . . . 8 9 Energy Gun 2 | . 4 . . 10 . 1 Ballistic Gun 10 | . 23 14 14 13 . . Ballistic Cannon 3 | . . . . . 8 8 Launcher 4 | . . 11 14 3 . . Peak Build Rating 61 | 9 11 13 15 23 60 61 Average Rating 28 | 6 9 9 14 20 50 58 On Entrance 18 | . 9 9 13 15 23 60 Naked Turns . | . . . . . . . Heaviest Build 90 | 14 30 30 28 33 90 89 Greatest Support 46 | 20 20 20 20 28 46 41 Greatest Overweight (x) 4 | 4 1 1 1 1 4 2 Average Overweight (x) 1 | . . 1 1 . 2 1 Largest Inventory Capacity 15 | 8 15 15 15 15 15 15 Average Capacity 14 | 7 11 15 15 15 15 15 Most Carried 15 | 3 15 15 15 15 15 15 Average Carried 13 | 1 8 14 14 14 14 14 Final Capacity 15 | 8 15 15 15 15 15 15 Final Carried 15 | 3 15 15 15 15 13 14 Class Distribution -------------------- 36% | Scavenger-Mutant 30% | Scavenger-Skirmisher 26% | Mutant 4% | Skirmisher Dominant Class ---------------- Mutant | -10/Materials Scavenger-Mutant | -10/Mines Scavenger-Mutant | -10/Exiles Mutant | -9/Mines Scavenger-Skirmisher | -8/Materials Scavenger-Skirmisher | -8/Garrison Resources | -11 -10 -10 -10 -9 -8 -8 ----------- Run | Yrd Mat Min Exi Min Mat Gar Matter Collected 968 | 304 219 185 . 62 104 94 Remotely . | . . . . . . . Salvage Created 2428 | 129 465 64 . 195 1117 458 Parts 155 | 9 36 17 . 9 65 19 Haulers Intercepted 3 | . 2 . . . . 1 Recyclers Shooed 1 | . 1 . . . . . Parts Field Recycled . | . . . . . . . Retrieved Matter . | . . . . . . . Parts Self-Destructed . | . . . . . . . Prevented . | . . . . . . . Kills | -11 -10 -10 -10 -9 -8 -8 ------- Run | Yrd Mat Min Exi Min Mat Gar Combat Hostiles Destroyed 66 | . 11 6 . 2 31 16 Guns 16 | . 11 3 . 2 . . Cannons 46 | . . . . . 30 16 AOE 4 | . . 3 . . 1 . Classes Destroyed 11 | 2 5 . . 1 3 . Worker 2 | . 1 . . . 1 . Tunneler 3 | 3 . . . . . . Hauler 3 | . 2 . . . . 1 Recycler 2 | 1 . . . 1 . . Operator 2 | . . . . . 2 . Watcher 5 | . 1 . . . 4 . Swarmer 15 | . 5 6 . . . 4 Grunt 36 | . 6 . . . 19 11 Duelist 2 | . . . . . 2 . Sentry 12 | . . . . 2 9 1 Hunter 2 | . . . . . 1 1 Best Kill Streak 6 | 4 3 3 . 2 6 5 Combat Bots Only 6 | . 3 3 . 2 6 5 Max Kills in Single Turn 3 | 1 1 3 . 2 1 1 Gunslinging 1 | . . . . 1 . . Exploded 3 | . . 3 . . 1 . Melee . | . . . . . . . Uniques/NPCs Destroyed . | . . . . . . . Combat | -11 -10 -10 -10 -9 -8 -8 -------- Run | Yrd Mat Min Exi Min Mat Gar Hostile Shots Fired 216 | . 42 10 . 10 88 66 Missed 74 | . 9 4 . 2 34 25 Damage Taken 2639 | . 346 49 . 121 1243 880 Core 323 | . 44 . . 27 105 147 Absorbed by Shields . | . . . . . . . Core Remaining (%) 85 | 100 . . . 71 . . Volleys Fired 78 | 8 43 22 . 4 1 . Largest 2 | 2 2 2 . 2 2 . Hottest 120 | 60 60 120 . 113 113 . Shots Fired 307 | 16 86 38 . 8 107 52 Gun 133 | 16 86 21 . 8 2 . Cannon 157 | . . . . . 105 52 Launcher 1 | . . 1 . . . . Special 16 | . . 16 . . . . Kinetic 255 | 8 64 21 . 4 106 52 Thermal 51 | 8 22 16 . 4 1 . Explosive 1 | . . 1 . . . . Electromagnetic . | . . . . . . . Robot Hit Streak 18 | 6 17 3 . 8 15 18 Robot Miss Streak 3 | 3 3 3 . 1 3 3 Penetration Max . | . . . . . . . Secondary Targets 3 | . 2 . . 1 . . Max Gunslinging Chain 1 | . 1 . . 1 . . Autonomous 158 | . . . . . 105 53 Shots Hit Robots 207 | 9 59 4 . 8 79 48 Core Hits 99 | 5 25 6 . 6 44 13 Critical Kills . | . . . . . . . Critical Parts Destroyed . | . . . . . . . Critical Strikes 7 | . . . . . 6 1 Blast 7 | . . . . . 6 1 Melee Attacks 10 | . . . . . . 10 Impact . | . . . . . . . Slashing 5 | . . . . . . 5 Piercing . | . . . . . . . Sneak Attacks 5 | . . . . . . 5 Combat Hostiles . | . . . . . . . Follow-up Attacks . | . . . . . . . Damage Inflicted 11723 | 110 750 191 . 203 6985 3484 Guns 1117 | 109 742 51 . 181 34 . Cannons 10143 | . . . . . 6659 3484 Explosions 402 | . . 125 . . 277 . Melee . | . . . . . . . Ramming 61 | 1 8 15 . 22 15 . Kinetic 10902 | 63 541 51 . 81 6682 3484 Thermal 443 | 46 201 . . 100 96 . Explosive 125 | . . 125 . . . . Electromagnetic 192 | . . . . . 192 . Impact . | . . . . . . . Slashing . | . . . . . . . Piercing . | . . . . . . . Highest Corruption . | . . . . . . . Average Corruption . | . . . . . . . Corruption Purged . | . . . . . . . Corruption Blocked . | . . . . . . . Overload Shots . | . . . . . . . Overflow Damage 1069 | . . . . . 505 564 Projectiles 1069 | . . . . . 505 564 Explosions . | . . . . . . . Melee . | . . . . . . . Knockbacks 26 | . 1 . . 1 12 12 Impact 2 | . 1 . . 1 . . Kinetic 21 | . . . . . 11 10 Secondary 3 | . . . . . 1 2 Self-Inflicted Damage 102 | . . 3 . . 99 . Shots 2 | . . 1 . . 1 . Rammed . | . . . . . . . Targets Rammed 12 | 1 3 2 . 3 3 . Kicked 12 | 1 3 2 . 3 3 . Crushed . | . . . . . . . Highest Temperature 311 | . 90 100 . 151 33 311 Average Temperature 50 | . 54 34 . 65 14 165 Received Heat Transfer 1179 | . 156 . . 36 369 618 Siege Activations . | . . . . . . . Robots Corrupted . | . . . . . . . Combat Hostiles . | . . . . . . . Parts Fried 1 | . . . . . 1 . Impact Corruptions 2 | . . . . . 1 1 Robots Melted . | . . . . . . . Combat Hostiles . | . . . . . . . Parts Melted . | . . . . . . . Heat Transferred 850 | 100 450 . . 225 75 . Parts Sabotaged . | . . . . . . . Parts Stolen . | . . . . . . . Parts Stripped . | . . . . . . . Power Chain Reactions . | . . . . . . . Alert | -11 -10 -10 -10 -9 -8 -8 ------- Run | Yrd Mat Min Exi Min Mat Gar Peak Influence 854 | 20 352 218 . 55 666 854 Initial 432 | . 13 67 . . . 432 Average 233 | 7 177 68 . 3 344 668 Maximum Alert Level 3 | . 1 1 . . 2 3 Low Security (%) 54 | 100 61 75 . 100 28 . Level 1 18 | . 38 24 . . 24 . Level 2 20 | . . . . . 47 48 Level 3 6 | . . . . . . 51 Level 4 . | . . . . . . . Level 5 . | . . . . . . . High Security . | . . . . . . . Max Security . | . . . . . . . Squads Dispatched 10 | . 3 . . . 7 . Investigation 7 | . 3 . . . 4 . Extermination . | . . . . . . . Reinforcement 2 | . . . . . 2 . Assault . | . . . . . . . Garrison 1 | . . . . . 1 . Intercept . | . . . . . . . Searches Triggered . | . . . . . . . Construction Impeded . | . . . . . . . Haulers Reinforced . | . . . . . . . Active Scanning Responses . | . . . . . . . Cargo Convoy Interrupts . | . . . . . . . Stealth | -11 -10 -10 -10 -9 -8 -8 --------- Run | Yrd Mat Min Exi Min Mat Gar Distress Signals 3 | . . . . . 2 1 Communications Jammed . | . . . . . . . Distress Signals . | . . . . . . . Times Spotted 88 | . 23 5 . 2 39 19 Peak Tracking Total 4 | . 4 3 . 2 4 4 Tactical Retreats 3 | . 2 . . . 1 . Traps | -11 -10 -10 -10 -9 -8 -8 ------- Run | Yrd Mat Min Exi Min Mat Gar Traps Triggered 7 | . 2 . . 1 . 4 Indirectly . | . . . . . . . Trap Hack Attempts . | . . . . . . . Triggered . | . . . . . . . Disarmed . | . . . . . . . Reprogrammed . | . . . . . . . Reused . | . . . . . . . Traps Extracted . | . . . . . . . Installed . | . . . . . . . Triggered . | . . . . . . . Most Traps Carried 2 | . . . . 2 . . Machines | -11 -10 -10 -10 -9 -8 -8 ---------- Run | Yrd Mat Min Exi Min Mat Gar Machines Disabled 7 | . . . . . 7 . Max in Single Turn 2 | . . . . . 2 . Garrison Relay 1 | . . . . . . 1 Machines Repaired . | . . . . . . . Machines Dismantled . | . . . . . . . Machines Sabotaged . | . . . . . . . Overloaded Fab Kills . | . . . . . . . Hacking | -11 -10 -10 -10 -9 -8 -8 --------- Run | Yrd Mat Min Exi Min Mat Gar Machines Accessed 17 | . 6 . . 1 10 . Terminals 10 | . 4 . . . 6 . Fabricators . | . . . . . . . Repair Stations . | . . . . . . . Recycling Units 3 | . 2 . . . 1 . Scanalyzers 2 | . . . . . 2 . Garrison Access 1 | . . . . . 1 . Total Hacks 33 | . 11 . . 1 21 . Successful 18 | . 7 . . 1 10 . Failed 15 | . 4 . . . 11 . Catastrophic 7 | . 1 . . . 6 . Database Lockouts . | . . . . . . . Manual 25 | . 11 . 1 . 13 . Terminals 22 | . 7 . . . 15 . Fabricators . | . . . . . . . Repair Stations . | . . . . . . . Recycling Units 5 | . 4 . . . 1 . Scanalyzers 3 | . . . . . 3 . Garrison Access 2 | . . . . . 2 . Terminal Hacks 6 | . 1 . . 1 4 . Open Door 1 | . . . . 1 . . Branch Access Points 2 | . 1 . . . 1 . Emergency Access Points 1 | . . . . . 1 . Alert Level 1 | . . . . . 1 . Investigation Status 1 | . . . . . 1 . Fabricator Hacks . | . . . . . . . Repair Station Hacks . | . . . . . . . Recycling Unit Hacks . | . . . . . . . Scanalyzer 3 | . . . . . 3 . Insert Component 2 | . . . . . 2 . Analyze 1 | . . . . . 1 . Garrison Access Hacks 1 | . . . . . 1 . Unlock Access 1 | . . . . . 1 . Unauthorized Hacks 8 | . 6 . . . 2 . Terminals 4 | . 3 . . . 1 . Track 1 | . 1 . . . . . Botnet 3 | . 2 . . . 1 . Fabricators . | . . . . . . . Repair Stations . | . . . . . . . Recycling Units 4 | . 3 . . . 1 . Mask 1 | . 1 . . . . . Tunnel 3 | . 2 . . . 1 . Scanalyzers . | . . . . . . . Garrison Access . | . . . . . . . Data Cores Recovered 2 | . . . . . 2 . Used . | . . . . . . . Hacking Detections 11 | . 3 . . . 8 . Full Trace Events 4 | . . . . . 4 . Feedback Events . | . . . . . . . Feedback Blocked . | . . . . . . . Robot Schematics Acquired . | . . . . . . . Robots Built . | . . . . . . . Authchips . | . . . . . . . Time . | . . . . . . . Total Robot Build Rating . | . . . . . . . Part Schematics Acquired 1 | . . . . . 1 . Parts Built . | . . . . . . . Authchips . | . . . . . . . Time . | . . . . . . . Total Part Build Rating . | . . . . . . . Parts Repaired . | . . . . . . . Time . | . . . . . . . Parts Recycled . | . . . . . . . Recycled Matter . | . . . . . . . Retrieved Matter . | . . . . . . . Retrieved Components . | . . . . . . . Parts Scanalyzed 1 | . . . . . 1 . Part Schematics Acquired 1 | . . . . . 1 . Parts Damaged . | . . . . . . . Bothacking | -11 -10 -10 -10 -9 -8 -8 ------------ Run | Yrd Mat Min Exi Min Mat Gar Used RIF Installer . | . . . . . . . Robots Hacked . | . . . . . . . Non-combat . | . . . . . . . Combat . | . . . . . . . Robot Hacks Applied . | . . . . . . . Relay Couplers Released 5 | . . . . . . 5 Machine Destruction 5 | . . . . . . 5 Fabnet Peak Effective % . | . . . . . . . Robots Rewired 3 | . . . . . . 3 Allies Hacked . | . . . . . . . Hacks Repelled . | . . . . . . . Allies | -11 -10 -10 -10 -9 -8 -8 -------- Run | Yrd Mat Min Exi Min Mat Gar Total Allies 3 | . . . . . . 3 Largest Group 3 | . . . . . . 3 Highest-Rated Group 48 | . . . . . . 48 Highest-Rated Ally 16 | . . . . . . 16 Total Orders . | . . . . . . . Ally Attacks 23 | . . . . . . 23 Total Damage 348 | . . . . . . 348 Kills 2 | . . . . . . 2 Allies Corrupted . | . . . . . . . Allies Melted . | . . . . . . . Intel | -11 -10 -10 -10 -9 -8 -8 ------- Run | Yrd Mat Min Exi Min Mat Gar Robot Analysis Total . | . . . . . . . Derelict Logs Recovered 2 | . . 1 . 1 . . Drone Launches . | . . . . . . . Drone Recoveries . | . . . . . . . Exploration | -11 -10 -10 -10 -9 -8 -8 ------------- Run | Yrd Mat Min Exi Min Mat Gar Turns Passed 7931 | 118 1083 1279 1209 1362 1979 901 Spaces Moved 3661 | 59 582 615 636 697 730 342 Core 11 | 11 . . . . . . Treads . | . . . . . . . Legs 3650 | 48 582 615 636 697 730 342 Wheels . | . . . . . . . Hover . | . . . . . . . Flight . | . . . . . . . Fastest Speed 50 | 50 120 190 190 120 120 120 Average Speed 202 | 133 153 190 190 189 260 244 Slowest Speed 400 | 250 190 190 190 190 400 260 Overloaded Moves . | . . . . . . . Propulsion Burnouts . | . . . . . . . Robots Hopped . | . . . . . . . Cave-ins Triggered . | . . . . . . . Exploration Rate (%) 67 | 3 79 97 91 98 66 35 Regions Visited 6 Branch Regions 3 Pre-discovered Areas 4 | . 2 . . 1 1 . Known Exits Taken 2 | . 1 . . . 1 . Unknown Exits Taken 4 | 1 . 1 1 1 . . Scrap Searched 2 | . . 1 . 1 . . Spaces Dug 17 | . . 15 . . . 2 Terrain Destroyed 81 | . . 24 . . 46 11 Melee 2 | . . . . . . 2 Projectile 44 | . . 16 . . 19 9 AOE 35 | . . 8 . . 27 . Terrain Rammed . | . . . . . . . Walls Destroyed . | . . . . . . . Machines Disabled . | . . . . . . . Actions | -11 -10 -10 -10 -9 -8 -8 --------- Run | Yrd Mat Min Exi Min Mat Gar Total 3991 | 78 687 654 639 731 806 396 Wait 89 | . 32 1 . 4 43 9 Move 3655 | 58 581 614 635 696 729 342 Hop . | . . . . . . . Pick Up 40 | 3 12 3 1 9 10 2 Fast Attach 21 | 7 4 1 . 2 4 3 Attach 11 | . . . . 1 7 3 Detach 9 | . 3 . . 1 2 3 Swap 17 | 1 4 6 . 2 1 3 Drop 34 | . 5 5 3 9 6 6 Fire 78 | 8 43 22 . 4 1 . Melee 10 | . . . . . . 10 Ram . | . . . . . . . Kick 12 | 1 3 2 . 3 3 . Crush . | . . . . . . . Escape Stasis 15 | . . . . . . 15 Rewire . | . . . . . . . Trap . | . . . . . . . Miscellaneous . | . . . . . . . Route ------- -11/Scrapyard -10/Materials (discovered 4 exits: [*Mat x2] / *Min x2) -10/Mines (discovered 3 exits: [*Mat x2] / *Exi) -10/Exiles (discovered 2 exits: *Min x2) -9/Mines (discovered 2 exits: *Mat x2) -8/Materials (discovered 3 exits: [*Fac x2] / Gar) -8/Garrison (discovered 2 exits: [*Mat x2]) History --------- Turn | Location | Event 16 | -11/Scrapyard | Discovered new exit (range 15) 119 | -11/Scrapyard | Entered Materials 125 | -10/Materials | Identified exit to Mines 317 | -10/Materials | Build established: Mutant 504 | -10/Materials | Discovered new exit (range 7) 1027 | -10/Materials | Discovered new exit (range 14) 1202 | -10/Materials | Entered Mines 1397 | -10/Mines | Build established: Scavenger-Mutant 1594 | -10/Mines | YI-UF0 nonchalantly dropped a Grenade Launcher on the ground 1895 | -10/Mines | Assembled infested the area 2199 | -10/Mines | A weapon hastily lodged in a ceiling crevice suddenly fell to the ground 2318 | -10/Mines | Discovered new exit (range 5) 2400 | -10/Mines | Discovered new exit (range 5) 2472 | -10/Mines | Discovered new exit (range 5) 2481 | -10/Mines | Entered Exiles 2527 | -10/Exiles | Met 8R-AWN 2559 | -10/Exiles | Met EX-HEX 2626 | -10/Exiles | Met EX-BIN 2647 | -10/Exiles | Aligned with FarCom system 2649 | -10/Exiles | Given EX-Vault access code 2692 | -10/Exiles | Opened EX-Vault 2705 | -10/Exiles | Found Prototype Ballistic Cannon 2746 | -10/Exiles | Warned to stay clear of 0b10 Research branches 2818 | -10/Exiles | Met EX-DEC 2934 | -10/Exiles | Discovered new exit (range 10) 3078 | -10/Exiles | Visited The Gauntlet 3449 | -10/Exiles | Discovered new exit (range 14) 3690 | -10/Exiles | Left Exiles lab with AWS/Autocannon 3690 | -10/Exiles | Entered Mines 3858 | -9/Mines | Discovered new exit (range 7) 3871 | -9/Mines | Found a hidden stash of uninstalled traps 4023 | -9/Mines | Met a Derelict who couldn't figure out how to use a Trap Extractor 4237 | -9/Mines | Found a damaged Exp. Sensor Array with a note attached 4241 | -9/Mines | Found Prototype Device 4317 | -9/Mines | Build established: Mutant 4476 | -9/Mines | Discovered new exit (range 6) 4477 | -9/Mines | Learned location of Storage (-9) 5052 | -9/Mines | Entered Materials 5052 | -8/Materials | Evolved 4 slots: Propulsion x1, Utility x2, Weapon x1 5068 | -8/Materials | Identified AWS/Autocannon 5355 | -8/Materials | Build established: Scavenger-Skirmisher 5553 | -8/Materials | Lost 5 parts (1p2n2u) 6105 | -8/Materials | Discovered new exit (range 5) 6397 | -8/Materials | Discovered new exit (range 16) 6531 | -8/Materials | Identified Exp. Sensor Array 6742 | -8/Materials | Build established: Skirmisher 6964 | -8/Materials | Garrison activated, responded to threat 7028 | -8/Materials | Identified exit to Garrison 7031 | -8/Materials | Entered Garrison 7057 | -8/Garrison | Build established: Scavenger-Skirmisher 7185 | -8/Garrison | Triggered checkpoint 7365 | -8/Garrison | Triggered checkpoint 7465 | -8/Garrison | Triggered checkpoint 7520 | -8/Garrison | Discovered new exit (range 15) 7669 | -8/Garrison | Triggered checkpoint 7800 | -8/Garrison | Discovered new exit (range 6) 7898 | -8/Garrison | Spotted B-75 Beast 7917 | -8/Garrison | Garrison Relay disabled 7923 | -8/Garrison | AWS/Autocannon suddenly broke down 7932 | -8/Garrison | Self-destructed Last Messages --------------- relay unit. 07917_ Relay Coupler [Sentry] tumbles out of relay unit. 07917_ Relay Coupler [Grunt] tumbles out of relay unit. 07917_ Relay Coupler [Demolisher] tumbles out of relay unit. 07917_ Relay Coupler [NC] tumbles out of relay unit. 07920_ Acquired 10 matter. 07920_ Imp. Carbon-fiber Leg destroyed. 07920_ Imp. Aluminum Leg blasted off. 07920_ Lgt. Nuclear Core destroyed. 07923_ Acquired 10 matter. 07923_ Critical hit (Meltdown: +330). 07923_ Knocked back. 07923_ Lgt. Armor Plating destroyed. 07923_ AWS/Autocannon suddenly breaks down. 07926_ Aluminum Leg destroyed. 07930_ Exp. Sensor Array destroyed. Map ----- +----------------------------------------------------+ | ????????????????????????????????????????? | | ?????????????????????????????#######????? | | ?????????????????????????????# #????? | | ?????????????????????????????# < #????? | | ?????????????????????????????# #????? | | ?????????????????????????????### #????? | | ???????????????????????????????# #????? | | ???????????????????????????????# #????? | | ???????????????????????????????# #????? | | ???????????????????????????????# #????? | | ???????????????????????????????# #????? | | ???????????????????????????????# #????? | | ???????????????????????????????# #????? | | ???????????????????????????????# #????? | | ???????????????????????????????# #????? | | ???????????????????????????????# #????? | | ???????????????????????????????# #????? | | ???????????????????????????????# #????? | | ???????????????????????????????# #????? | | ???????????????????????????????# #????? | | ???????????????????????????????# #????? | | ???????????????????????????????# #????? | | ???????????????????????????????# #????? | | ??????????######?????##???#???## #????? | | ???????####;# %######;##BB#####" #????? | | ???????# ;[;%[=@[[%=%=%BB% #????? | | ????????##### !% [%!%!=*=[ % % #????? | | ????????????# ####=!!##### ##% #????? | | ??????????### #?#""!""#??# ## #????? | | ??????????# #?#######??###### #????? | | ??????????#% #???????????????# *[#????? | | ??????????# #???????????????# %%#????? | | ??????????# #???????????????#%!*###??? | | ??????????### #???????????????# % " #### | | ????????????# #???????????????+ % | | ??????####### #???????????????# %% | | ??????# #???????????????# | | ??????# < #???????????????########## | | ??????# #????????????????????????# | | ??????##########????????????????????????# | | ????????????????????????????????????????# | | ????????????????????????????????????????# | | ????????????????????????????????###?????# | | ????????????????????????????????# #?????# | | ????????????????????????????????#"####### | | ????????????????????????????????# | | ????????????????????????????????# | | ????????????????????????????????# | | ????????????????????????????????#%[%##### | | ????????????????????????????????#^^ #???? | +----------------------------------------------------+ Best States ------------- Heat Dissipation 31 Energy Generation 14 Energy Capacity 250 Matter Stores 300 Matter Capacity 300 Sight Range 16 Robot Scan Range 20 Terrain Scan Range 16 Terrain Scan Density 10 Armor Coverage 150 Evasion (%) 55 Offensive Hacking 10 Item Schematics ----------------- Recalibrator | -8/Materials | Scanalyzed Robot Schematics ------------------ None Fabricated ------------ Nothing Alien Tech Used ----------------- None Achievements -------------- I Spy Challenges ------------ None Game ------ Seed MultinovaThermalLegs Manual? 0 Play Time 00:53:26 Cumulative 35.4 hours Start 2024.08.18 @ 15:55:20 End 2024.08.18 @ 16:46:20 Sessions 1 Manual Loads 0 Difficulty Rogue Special Mode None Game No. 48 Rogue 48 Adventurer 0 Explorer 0 Win Type - Total 0 Types 0/0/0/0/0/0/0/0/0 Lore% 12 Gallery% 22 Achievement% 21 Wizard Run 0 Options --------- Layout 1 ASCII 0 Keyboard 0 Movement Numpad Keybinds 0 Fullscreen 1 Font 32/SmallcapsGlow Map View 50x40 Zoom Use 5% Tactical HUD 1 Map Filters NONE Filters NONE Steam 1 RUN: 7662446f-9980-4429-9442-cd503bd33108